{"text_format":"1","workbook":"xlsx","n_sheets":3,"sheets":["DATA","SISMO","LLUVIAS"],"not_rendered":{"charts":0,"images":35,"macros":1,"external_links":0,"defined_names":30,"comments":0,"pivot_tables":0},"unopened":[],"bounds":{"document_bytes":16777216,"sheet_cells":100000,"rows_first":2000,"rows_last":500,"rows_between":2000,"halvings":0,"cell_chars":16384,"cell_head_chars":4096},"cells_cut":0,"cells_raw":0,"read":"whole","date_system":"1900"}

{"sheet":"DATA","index":0,"n_rows":146,"n_cols":28,"rows_kept":146,"cut":false,"hidden":true,"merged":[]}
[]
[null,"DRE","AMAZONAS","ANCASH","APURIMAC","AREQUIPA","AYACUCHO","CAJAMARCA","CALLAO","CUSCO","HUANCAVELICA","HUANUCO","ICA","JUNIN","LA_LIBERTAD","LAMBAYEQUE","LIMA_METROPOLITANA","LIMA_PROVINCIAS","LORETO","MADRE_DE_DIOS","MOQUEGUA","PASCO","PIURA","PUNO","SAN_MARTIN","TACNA","TUMBES","UCAYALI"]
[1,"AMAZONAS","BAGUA","AIJA","ABANCAY","AREQUIPA NORTE","CANGALLO","CAJABAMBA","VENTANILLA","ACOMAYO","ACOBAMBA","AMBO","CHINCHA","CHANCHAMAYO","ASCOPE","CHICLAYO","N° 01 SAN JUAN DE MIRAFLORES","N° 08 CAÑETE","ALTO AMAZONAS-SAN LORENZO","MANU","GENERAL SANCHEZ CERRO","DANIEL ALCIDES CARRION","AYABACA","AZANGARO","BELLAVISTA","CANDARAVE","CONTRALMIRANTE VILLAR","ATALAYA"]
[2,"ANCASH","BONGARA","ANTONIO RAIMONDI","ANDAHUAYLAS","AREQUIPA SUR","HUAMANGA","CAJAMARCA",null,"ANTA","ANGARAES","DOS DE MAYO","ICA","CHUPACA","BOLIVAR","FERREÑAFE","N° 02 RIMAC","N° 09 HUAURA","ALTO AMAZONAS-YURIMAGUAS","TAHUAMANU","ILO","OXAPAMPA","CHULUCANAS","CARABAYA","EL DORADO","JORGE BASADRE","TUMBES","CORONEL PORTILLO"]
[3,"APURIMAC","CHACHAPOYAS","ASUNCION","ANTABAMBA","CAMANA","HUANCASANCOS","CELENDIN",null,"CALCA","CASTROVIRREYNA","HUACAYBAMBA","NASCA","CONCEPCION","CHEPEN","LAMBAYEQUE","N° 03 LIMA","N° 10 HUARAL","LORETO-NAUTA","TAMBOPATA","MARISCAL NIETO","PASCO","HUANCABAMBA","CHUCUITO","HUALLAGA","TACNA","ZARUMILLA","PADRE ABAD"]
[4,"AREQUIPA","CONDORCANQUI","BOLOGNESI","AYMARAES","CARAVELI","HUANTA","CHOTA",null,"CANAS","CHURCAMPA","HUAMALIES","PALPA","HUANCAYO","GRAN CHIMU",null,"N° 04 COMAS","N° 11 CAJATAMBO","MAYNAS",null,null,null,"LA UNION","CRUCERO","LAMAS","TARATA",null,"PURÚS"]
[5,"AYACUCHO","LUYA","CARHUAZ","CHINCHEROS","CASTILLA","LA MAR","CONTUMAZA",null,"CANCHIS","HUANCAVELICA","HUÁNUCO","PISCO","JAUJA","JULCAN",null,"N° 05 SAN JUAN DE LURIGANCHO","N° 12 CANTA","PUTUMAYO",null,null,null,"MORROPON","EL COLLAO","MARISCAL CACERES"]
[6,"CAJAMARCA","RODRIGUEZ DE MENDOZA","CARLOS F. FITZCARRALD","COTABAMBAS","CAYLLOMA","LUCANAS","CUTERVO",null,"CHUMBIVILCAS","HUAYTARA","LAURICOCHA",null,"JUNIN","OTUZCO",null,"N° 06 VITARTE","N° 13 YAUYOS","RAMON CASTILLA-CABALLOCOCHA",null,null,null,"PAITA","HUANCANE","MOYOBAMBA"]
[7,"CALLAO","UTCUBAMBA","CASMA","GRAU","CONDESUYOS","PARINACOCHAS","HUALGAYOC",null,"CUSCO","TAYACAJA","LEONCIO PRADO",null,"PANGOA","PACASMAYO",null,"N° 07 SAN BORJA","N° 14 OYON","REQUENA",null,null,null,"PIURA","LAMPA","PICOTA"]
[8,"CUSCO",null,"CORONGO","HUANCARAMA (rs nº 034-2006-ed)","ISLAY","PAUCAR DE SARASARA","JAEN",null,"ESPINAR",null,"MARAÑON",null,"PICHANAKI","PATAZ",null,null,"N° 15 HUAROCHIRI","UCAYALI-CONTAMANA",null,null,null,"SECHURA","MELGAR","RIOJA"]
[9,"HUANCAVELICA",null,"HUARAZ",null,"LA JOYA","SUCRE","SAN IGNACIO",null,"LA CONVENCION",null,"PACHITEA",null,"RIO TAMBO","SANCHEZ CARRION",null,null,"N° 16 BARRANCA",null,null,null,null,"SULLANA","MOHO","SAN MARTIN"]
[10,"HUANUCO",null,"HUARI",null,"LA UNION","VICTOR FAJARDO","SAN MARCOS",null,"PARURO",null,"PUERTO INCA",null,"SATIPO","SANTIAGO DE CHUCO",null,null,null,null,null,null,null,"TALARA","PUNO","TOCACHE"]
[11,"ICA",null,"HUARMEY",null,null,"VILCASHUAMAN","SAN MIGUEL",null,"PAUCARTAMBO",null,"YAROWILCA",null,"TARMA","TRUJILLO",null,null,null,null,null,null,null,"TAMBOGRANDE","SAN ANTONIO DE PUTINA"]
[12,"JUNIN",null,"HUAYLAS",null,null,null,"SAN PABLO",null,"QUISPICANCHI",null,null,null,"YAULI","VIRÚ",null,null,null,null,null,null,null,null,"SAN ROMAN"]
[13,"LA_LIBERTAD",null,"MARISCAL LUZURIAGA",null,null,null,"SANTA CRUZ",null,"URUBAMBA",null,null,null,null,null,null,null,null,null,null,null,null,null,"SANDIA"]
[14,"LAMBAYEQUE",null,"OCROS",null,null,null,null,null,null,null,null,null,null,null,null,null,null,null,null,null,null,null,"YUNGUYO"]
[15,"LIMA_METROPOLITANA",null,"PALLASCA"]
[16,"LIMA_PROVINCIAS",null,"POMABAMBA"]
[17,"LORETO",null,"RECUAY"]
[18,"MADRE_DE_DIOS",null,"SANTA"]
[19,"MOQUEGUA",null,"SIHUAS"]
[20,"PASCO",null,"YUNGAY"]
[21,"PIURA"]
[22,"PUNO"]
[23,"SAN_MARTIN"]
[24,"TACNA"]
[25,"TUMBES"]
[26,"UCAYALI"]
[]
[null,"Turno"]
[null,"Mañana"]
[null,"Tarde"]
[null,"Noche"]
[]
[null,"Modalidad","E.B.A.","E.B.E.","E.B.R.","CETPRO","SUP.N.U."]
[null,"E.B.A.","Inicial","Especial","Inicial","Básico","I.S.P."]
[null,"E.B.E.","Intermedio",null,"Primaria","Intermedio","I.S.T."]
[null,"E.B.R.","Avanzado",null,"Secundaria",null,"E.S.F.A."]
[null,"CETPRO"]
[null,"SUP.N.U."]
[]
[null,"Gestion","Area"]
[null,"Pública","Urbano"]
[null,"Privada","Rural"]
[]
[]
[]
[null,"antes","Durante","despues"]
[null,1,1,0]
[null,2,2,1]
[null,3,3,2]
[null,null,4]
[]
[null,"dia","mes","Año"]
[null,1,"Ene",2012]
[null,2,"Feb",2013]
[null,3,"Mar",2014]
[null,4,"Abr",2015]
[null,5,"May",2016]
[null,6,"Jun",2017]
[null,7,"Jul",2018]
[null,8,"Ago",2019]
[null,9,"Sep",2020]
[null,10,"Oct",2021]
[null,11,"Nov"]
[null,12,"Dic"]
[null,13]
[null,14]
[null,15]
[null,16]
[null,17]
[null,18]
[null,19]
[null,20]
[null,21]
[null,22]
[null,23]
[null,24]
[null,25]
[null,26]
[null,27]
[null,28]
[null,29]
[null,30]
[null,31]
[]
[null,"logroopcion"]
[null,"Elija una opción"]
[null,"En Inicio","Parcial"]
[null,"En Proceso","Total"]
[null,"Logro Previsto"]
[null,"Logro Destacado"]
[]
[null,"dre"]
[null,"ugel"]
[null,"gestion"]
[null,"mañana",false]
[null,"tarde"]
[null,"noche"]
[null,"EBR"]
[1,"Inicial"]
[2,"Primaria"]
[3,"Secundaria"]
[4,"Inicial"]
[5,"Intermedio"]
[6,"Avanzado"]
[7,"Especial"]
[8,"Basico"]
[9,"Intermedio"]
[10,"ISP"]
[11,"IST"]
[12,"ESFA"]
[null,"area"]
[]
[]
[null,"simulacro"]
[null,1]
[null,2]
[null,3]
[null,4]
[null,5]
[]
[null,"Ministerio de Salud",false]
[null,"Gobierno Local",false]
[null,"Policia Nacional",false]
[null,"Bomberos",false]
[]
[]
[null,"Lluvias intensas",1,"fen","Precipitaciones Solidas - Granizo"]
[null,"Deslizamiento (huayco)",5,null,"Vientos fuertes"]
[null,"Inundación (desborde de rio)",null,"fen","Incendio Urbano"]
[null,"Sequia",null,"fen","Incendio Industrial"]
[null,"Sismo - Sismo y tsunami",null,null,"Incendio Forestal"]
[null,null,null,null,"Heladas"]
[null,null,null,null,"Friaje"]
[null,null,null,null,"Erosión"]
[null,null,null,null,"Tormentas electricas"]
[null,null,null,null,"Plagas"]
[null,null,null,null,"Epidemias"]
[null,null,null,null,"Pandemias"]
[null,null,null,null,"Oleaje anomalo"]
[null,null,null,null,"Actividad volcanica"]
[null,null,null,null,"Contaminación agua"]
[null,null,null,null,"Contaminación aire"]
[null,null,null,null,"Contaminación suelo"]
[null,null,null,null,"Otros"]

{"sheet":"SISMO","index":1,"n_rows":236,"n_cols":30,"rows_kept":236,"cut":false,"hidden":false,"merged":[[235,2,235,29],[225,16,225,29],[226,16,226,29],[232,2,232,29],[219,10,219,13],[219,14,219,17],[223,16,223,29],[224,16,224,29],[219,4,219,5],[219,6,219,9],[217,10,217,13],[217,14,217,17],[218,1,218,5],[218,6,218,9],[218,10,218,13],[218,14,218,17],[217,1,217,5],[217,6,217,9],[215,10,215,13],[215,14,215,17],[216,1,216,5],[216,6,216,9],[216,10,216,13],[216,14,216,17],[215,1,215,5],[215,6,215,9],[213,1,214,5],[213,6,213,17],[214,6,214,9],[214,10,214,13],[214,14,214,17],[208,17,208,27],[208,28,208,29],[209,2,209,12],[209,13,209,14],[209,17,209,27],[209,28,209,29],[208,2,208,12],[208,13,208,14],[206,17,206,27],[206,28,206,29],[207,2,207,12],[207,13,207,14],[207,17,207,27],[207,28,207,29],[206,2,206,12],[206,13,206,14],[204,17,204,27],[204,28,204,29],[205,2,205,12],[205,13,205,14],[205,17,205,27],[205,28,205,29],[204,2,204,12],[204,13,204,14],[202,17,202,27],[202,28,202,29],[203,2,203,12],[203,13,203,14],[203,17,203,27],[203,28,203,29],[202,2,202,12],[202,13,202,14],[200,17,200,27],[200,28,200,29],[201,2,201,12],[201,13,201,14],[201,17,201,27],[201,28,201,29],[200,2,200,12],[200,13,200,14],[199,2,199,12],[199,17,199,27],[199,28,199,29],[196,5,196,6],[196,16,196,17],[196,27,196,28],[195,5,195,6],[195,16,195,17],[195,27,195,28],[194,5,194,6],[194,16,194,17],[194,27,194,28],[189,5,189,6],[189,16,189,17],[189,27,189,28],[188,5,188,6],[188,16,188,17],[188,27,188,28],[187,5,187,6],[187,16,187,17],[187,27,187,28],[182,5,182,6],[182,16,182,17],[182,27,182,28],[181,5,181,6],[181,16,181,17],[181,27,181,28],[180,5,180,6],[180,16,180,17],[180,27,180,28],[170,13,170,14],[172,13,172,14],[164,13,164,14],[164,22,164,23],[168,13,168,14],[156,6,156,29],[158,6,158,29],[162,13,162,14],[162,22,162,23],[150,6,150,29],[152,6,152,29],[154,6,154,29],[134,17,137,20],[134,21,137,30],[148,6,148,29],[132,0,132,16],[132,17,132,30],[133,18,133,30],[94,17,94,19],[101,15,101,29],[131,0,131,30],[38,5,38,6],[38,14,38,15],[38,22,38,23],[35,22,35,25],[35,26,35,29],[36,1,36,6],[33,26,33,27],[33,28,33,29],[34,22,34,23],[34,24,34,25],[34,26,34,27],[34,28,34,29],[33,22,33,23],[33,24,33,25],[31,26,31,27],[31,28,31,29],[32,22,32,23],[32,24,32,25],[32,26,32,27],[32,28,32,29],[31,22,31,23],[31,24,31,25],[30,13,30,16],[30,17,30,21],[30,22,30,23],[30,24,30,25],[30,26,30,27],[30,28,30,29],[30,1,30,4],[30,5,30,8],[30,9,30,12],[29,1,29,21],[29,22,29,25],[29,26,29,29],[26,1,26,5],[26,6,26,29],[28,21,28,24],[28,26,28,29],[22,17,22,21],[22,22,22,26],[24,1,24,5],[24,17,24,21],[24,22,24,29],[22,1,22,5],[22,6,22,10],[18,17,18,21],[18,22,18,26],[20,1,20,5],[20,17,20,19],[18,1,18,5],[18,6,18,10],[14,17,14,21],[14,22,14,29],[16,1,16,5],[16,17,16,21],[14,1,14,5],[14,6,14,15],[10,1,10,5],[10,6,10,29],[12,1,12,5],[12,6,12,29],[4,0,4,30],[8,1,8,5],[8,6,8,9],[8,17,8,19],[8,23,8,26]]}
[]
[]
[]
[]
["FICHA DE EVALUACIÓN DE SIMULACROS POR SISMO Y TSUNAMI"]
[]
["I. DATOS GENERALES"]
[]
[null,"N° I.E.:",null,null,null,null,null,null,null,null,null,null,"Fecha Aplicación:",null,null,null,null,null,null,null,null,null,null,"Simulacro N°:"]
[]
[null,"Nombre I.E.:"]
[]
[null,"Director(a):"]
[]
[null,"Dirección I.E.:",null,null,null,null,null,null,null,null,null,null,null,null,null,null,null,"Distrito:"]
[]
[null,"D.R.E.:",null,null,null,null,null,null,null,null,null,null,null,null,null,null,null,"U.G.E.L.:"]
[]
[null,"Código Local:",null,null,null,null,null,null,null,null,null,null,null,null,null,null,null,"Código Modular:"]
[]
[null,"Gestión:",null,null,null,null,null,null,null,null,null,null,null,null,null,null,null,"Turno:"]
[]
[null,"Teléfono I.E.:",null,null,null,null,null,null,null,null,null,null,null,null,null,null,null,"Celular Director(a):"]
[]
[null,"Área:",null,null,null,null,null,null,null,null,null,null,null,null,null,null,null,"Correo electrónico:",null,null,1]
[]
[null,"Coordinador CGR:"]
[]
[null,"Modalidad (nivel/ciclo) y Estudiantes - Docentes (cantidad)"]
[null,"MODALIDAD",null,null,null,null,null,null,null,null,null,null,null,null,null,null,null,null,null,null,null,null,"N° Estudiantes",null,null,null,"N° Docentes"]
[null,null,null,null,null,null,null,null,null,null,null,null,null,null,null,null,null,null,null,null,null,null,"H",null,"M",null,"H",null,"M"]
[]
[]
[]
[null,null,null,null,null,null,null,null,null,null,null,null,null,null,null,null,null,null,null,null,null,"Subtotales",{"$f":"SUM(W32:X34)","v":0},null,{"$f":"SUM(Y32:Z34)","v":0},null,{"$f":"SUM(AA32:AB34)","v":0},null,{"$f":"SUM(AC32:AD34)","v":0}]
[null,null,null,null,null,null,null,null,null,null,null,null,null,null,null,null,null,null,null,null,null,"TOTAL",{"$f":"SUM(W35)+Y35","v":0},null,null,null,{"$f":"SUM(AA35)+AC35","v":0}]
[null,"Ambientes en uso:",null,null,null,null,null,"(indique la cantidad)"]
[null,null,null,null,null,null,"}"]
[null,null,null,null,"Aulas de clase",null,null,null,null,null,null,null,null,"Administrativos",null,null,null,null,null,null,null,"Otros"]
[]
[]
["II. ANTES DEL SIMULACRO",null,null,null,null,null,null,null,null,null,null,null,null,null,null,null,null,null,null,null,null,null,null,null,null,null,null,"Subtotal Parcial",null,{"$f":"SUM(AD46,AD48,AD50,AD52,AD54,AD56,AD58,AD60,AD64,AD66,AD68)","v":0}]
[]
["ASPECTOS FISICOS (organización, funcionamiento y equipos de emergencia)",null,null,null,null,null,null,null,null,null,null,null,null,null,null,null,null,null,null,null,null,null,null,null,null,null,null,null,null,"Puntos"]
[]
[null,"2.1 Constitución y funcionamiento de la Comisión de Gestión del Riesgo."]
[]
[null,"2.2 Plan de Gestión del Riesgo y de contingencia"]
[]
[null,"2.3 Inspección técnica del local."]
[]
[null,"2.4 Implementación del Centro de Operaciones de Emergencia "]
[]
[null,"2.5 Colocación de señales en las zonas de seguridad y las rutas de evacuación"]
[]
[null,"2.6 Implementación del botiquin de primeros auxilios, camillas, otros."]
[]
[null,"2.7 Implementación de extintores en cada área y/o recipientes de arena fina."]
[]
[null,"2.8 Implementación de herramientas: barreta, hacha, pala, pico, etc."]
[]
["ASPECTOS PEDAGÓGICOS",null,null,null,null,null,null,null,null,null,null,null,null,null,null,null,null,null,null,null,null,null,null,null,null,null,null,null,null,"Puntos"]
[]
[null,"2.13 Capacitación a docentes, personal administrativo y de servicio."]
[]
[null,"2.14 Elabora materiales y recursos educativos para el desarrollo del simulacro."]
[]
[null,"2.15 Realiza el simulacro en el marco de sesiones de aprendizaje y/o unidades didacticas."]
[]
[]
["III. DURANTE EL SIMULACRO",null,null,null,null,null,null,null,null,null,null,null,null,null,null,null,null,null,null,null,null,null,null,null,null,null,null,"Subtotal Parcial",null,{"$f":"SUM(AD75,AD77,AD79,AD81,AD85,AD87,AD89,AD91,AD95,AD97)","v":0}]
[]
["PARTICIPACIÓN DEL PERSONAL",null,null,null,null,null,null,null,null,null,null,null,null,null,null,null,null,null,null,null,null,null,null,null,null,null,null,null,null,"Puntos"]
[]
[null,"3.1 Personal docente. …………………………………………………………………………………………………………………………"]
[]
[null,"3.2 Personal administrativo. …………………………………………………………………………………………………………….."]
[]
[null,"3.3 Estudiantes. …………………………………………………………………………………………………………………………………."]
[]
[null,"3.4 Personal de servicio y visitantes. ……………………………………………………………………………………………….."]
[]
["DESPLAZAMIENTO DEL PERSONAL",null,null,null,null,null,null,null,null,null,null,null,null,null,null,null,null,null,null,null,null,null,null,null,null,null,null,null,null,"Puntos"]
[]
[null,"3.5 Personal docente. ……………………………………………………………………………………………………………………….."]
[]
[null,"3.6 Personal administrativo. …………………………………………………………………………………………………………….."]
[]
[null,"3.7 Estudiantes. …………………………………………………………………………………………………………………………………"]
[]
[null,"3.8 Personal de servicio y visitantes. ………………………………………………………………………………………………."]
[]
["OTROS",null,null,null,null,null,null,null,null,null,null,null,null,null,null,null,null,null,null,null,null,null,null,null,null,null,null,null,null,"Puntos"]
[]
[null,"3.9 Tiempo de duración de la evacuación. "]
[]
[null,"3.10 Funcionamiento del sistema de alarma:"]
[]
[]
[null,"3.13 Si la evacuación es EXTERNA, ¿tiene ruta de evacuación?"]
[]
[null,"3.14 Si la evacuación es externa indicar el lugar:"]
[]
[]
["IV. DESPUES DEL SIMULACRO",null,null,null,null,null,null,null,null,null,null,null,null,null,null,null,null,null,null,null,null,null,null,null,null,null,null,"Subtotal Parcial",null,{"$f":"SUM(AD109,AD113,AD115,AD119,AD121,AD123,AD129)","v":0}]
[]
["COMISION DE GESTIÓN DEL RIESGO",null,null,null,null,null,null,null,null,null,null,null,null,null,null,null,null,null,null,null,null,null,null,null,null,null,null,null,null,"Puntos"]
[]
[null,"4.1 Participación de los integrantes de la Comisión de Gestión del Riesgo."]
[]
["COORDINADOR DEL SIMULACRO",null,null,null,null,null,null,null,null,null,null,null,null,null,null,null,null,null,null,null,null,null,null,null,null,null,null,null,null,"Puntos"]
[]
[null,"4.2 Asumió su función de lider en la conducción del evento."]
[]
[null,"4.3 Impartió instrucciones claras, concretas al personal y brigadistas."]
[]
["PARTICIPACIÓN DE BRIGADAS",null,null,null,null,null,null,null,null,null,null,null,null,null,null,null,null,null,null,null,null,null,null,null,null,null,null,null,null,"Puntos"]
[]
[null,"4.4 Brigada de señalización de evacuación y evaluación"]
[]
[null,"4.5 Brigada de docentes en intervención inicial de búsqueda y salvamento"]
[]
[null,"4.6 Brigada de primeros auxilios"]
[]
[null,"4.7 Brigada de protección y entrega de niños"]
[]
[null,"4.8 Brigada contra incendios"]
[]
[null,"4.9 Brigada de seguridad frente a riesgo social"]
[]
[]
["EVALUACIÓN FINAL"]
["PUNTOS OBTENIDOS:",null,null,null,null,null,null,null,null,null,null,null,null,null,null,null,null,{"$f":"SUM(AD105,AD71,AD42)","v":0}]
["NIVEL DE LOGRO",null,null,null,null,null,null,null,null,null,null,null,null,null,null,null,null,null,"LOGRO ALCANZADO (MAX 100)"]
["EN INICIO",null,null,null,null,null,null,"(01 - 40%)",null,null,null,null,null,null,null,null,null,{"$f":"(R133/100)*100","v":0},null,null,null,{"$f":"IF(AND(R135>=0,R135<41),\"EN INICIO\",(IF(AND(R135>=41,R135<71),\"EN PROCESO\",(IF(AND(R135>=71,R135<91),\"LOGRO PREVISTO\",\"LOGRO DESTACADO\")))))","v":"EN INICIO"}]
["EN PROCESO",null,null,null,null,null,null,"(41 - 70%)"]
["LOGRO PREVISTO",null,null,null,null,null,null,"(71 - 90%)"]
["LOGRO DESTACADO",null,null,null,null,null,null,"(91 - 100%)"]
[]
["V. PREPARACION ANTE SISMO Y TSUNAMI"]
[]
["ESPACIOS ALTERNOS PARA LA CONTINUIDAD DEL APRENDIZAJE"]
[]
[null,null,null,null,null,null,null,null,null,null,"Espacio alterno definido:"]
[]
[null,null,null,null,null,null,null,null,null,null,"Espacio alterno ubicado en la misma IE:"]
[]
[null,"Espacios Comunitarios (dirección):"]
[]
[]
[]
[]
[]
[]
[]
[]
[]
[]
[]
[]
[null,"N° de ambientes disponibles:"]
[]
[null,null,null,null,null,null,null,null,null,null,null,null,"Aulas de clase:",null,null,null,null,null,null,null,null,"Otros:"]
[]
[null,null,null,null,null,null,null,null,null,null,null,null,"Administrativos:",null,null,null,null,null,null,null,null,"Area de uso al aire libre:"]
[]
[null,"Los espacios alternos cuenta con (marcar con un aspa \"X\"):"]
[]
[null,null,null,null,null,null,null,null,null,null,null,null,"Agua:"]
[]
[null,null,null,null,null,null,null,null,null,null,null,null,"Desagüe:"]
[]
[null,null,null,null,null,null,null,null,null,null,null,null,"Acceso seguro:"]
[]
[]
["VII. REPORTE DE DAÑOS"]
[]
["A LA VIDA Y SALUD - ESTUDIANTES"]
[]
[null,"FALLECIDOS",null,null,null,null,null,null,null,null,null,null,"HERIDOS",null,null,null,null,null,null,null,null,null,null,"DESAPARECIDOS"]
[null,null,null,null,"Hombres:",null,null,null,null,null,null,null,null,null,null,"Hombres:",null,null,null,null,null,null,null,null,null,null,"Hombres:"]
[null,null,null,null,"Mujeres:",null,null,null,null,null,null,null,null,null,null,"Mujeres:",null,null,null,null,null,null,null,null,null,null,"Mujeres:"]
[null,null,null,null,"Total:",null,null,null,null,null,null,null,null,null,null,"Total:",null,null,null,null,null,null,null,null,null,null,"Total:"]
[]
["A LA VIDA Y SALUD - DOCENTES"]
[]
[null,"FALLECIDOS",null,null,null,null,null,null,null,null,null,null,"HERIDOS",null,null,null,null,null,null,null,null,null,null,"DESAPARECIDOS"]
[null,null,null,null,"Hombres:",null,null,null,null,null,null,null,null,null,null,"Hombres:",null,null,null,null,null,null,null,null,null,null,"Hombres:"]
[null,null,null,null,"Mujeres:",null,null,null,null,null,null,null,null,null,null,"Mujeres:",null,null,null,null,null,null,null,null,null,null,"Mujeres:"]
[null,null,null,null,"Total:",null,null,null,null,null,null,null,null,null,null,"Total:",null,null,null,null,null,null,null,null,null,null,"Total:"]
[]
["A LA VIDA Y SALUD - ADMINISTRATIVOS"]
[]
[null,"FALLECIDOS",null,null,null,null,null,null,null,null,null,null,"HERIDOS",null,null,null,null,null,null,null,null,null,null,"DESAPARECIDOS"]
[null,null,null,null,"Hombres:",null,null,null,null,null,null,null,null,null,null,"Hombres:",null,null,null,null,null,null,null,null,null,null,"Hombres:"]
[null,null,null,null,"Mujeres:",null,null,null,null,null,null,null,null,null,null,"Mujeres:",null,null,null,null,null,null,null,null,null,null,"Mujeres:"]
[null,null,null,null,"Total:",null,null,null,null,null,null,null,null,null,null,"Total:",null,null,null,null,null,null,null,null,null,null,"Total:"]
[]
[null,"6.3 RELACIÓN DE ATENDIDOS"]
[null,"N°","FALLECIDOS",null,null,null,null,null,null,null,null,null,null,"EDAD",null,null,"N°","HERIDOS",null,null,null,null,null,null,null,null,null,null,"EDAD"]
[null,1,null,null,null,null,null,null,null,null,null,null,null,null,null,null,1]
[null,2,null,null,null,null,null,null,null,null,null,null,null,null,null,null,2]
[null,3,null,null,null,null,null,null,null,null,null,null,null,null,null,null,3]
[null,4,null,null,null,null,null,null,null,null,null,null,null,null,null,null,4]
[null,5,null,null,null,null,null,null,null,null,null,null,null,null,null,null,5]
[null,6,null,null,null,null,null,null,null,null,null,null,null,null,null,null,6]
[null,7,null,null,null,null,null,null,null,null,null,null,null,null,null,null,7]
[null,8,null,null,null,null,null,null,null,null,null,null,null,null,null,null,8]
[null,9,null,null,null,null,null,null,null,null,null,null,null,null,null,null,9]
[null,10,null,null,null,null,null,null,null,null,null,null,null,null,null,null,10]
[]
["A LA INFRAESTRUCTURA EDUCATIVA"]
[]
[null,"Tipo de ambiente",null,null,null,null,"CANTIDAD DE AMBIENTES"]
[null,null,null,null,null,null,"AFECTADA",null,null,null,"INHABILITADA",null,null,null,"COLAPSADA"]
[null,"Edificaciones:"]
[null,"Aulas:"]
[null,"Techos:"]
[null,"Servicios higiénicos:"]
[null,null,null,null,"Total"]
[]
[null,"Instituciones que Brindaron Ayuda (seleccionar)"]
[null,null,null,null,null,null,null,null,null,null,null,null,null,null,"Otros: (Precisar)"]
[]
[]
[]
[]
[]
[]
["VI. RECOMENDACIONES"]
[]
[null,"6.1 DEL COORDINADOR DE LA COMISIÓN DE GESTIÓN DEL RIESGO"]
[]
[]
[null,"6.2 DEL EVALUADOR / OBSERVADOR"]
[null,null," "]

{"sheet":"LLUVIAS","index":2,"n_rows":270,"n_cols":30,"rows_kept":270,"cut":false,"hidden":false,"merged":[[4,0,4,30],[8,1,8,5],[8,6,8,9],[8,17,8,19],[8,23,8,26],[10,1,10,5],[10,6,10,29],[16,1,16,5],[16,17,16,21],[18,1,18,5],[18,6,18,10],[18,17,18,21],[18,22,18,26],[12,1,12,5],[12,6,12,29],[14,1,14,5],[14,6,14,15],[14,17,14,21],[14,22,14,29],[24,1,24,5],[24,17,24,21],[24,22,24,29],[26,1,26,5],[26,6,26,29],[28,21,28,24],[28,26,28,29],[20,1,20,5],[20,17,20,19],[22,1,22,5],[22,6,22,10],[22,17,22,21],[22,22,22,26],[29,1,29,21],[29,22,29,25],[29,26,29,29],[30,1,30,4],[30,5,30,8],[30,9,30,12],[30,13,30,16],[30,17,30,21],[30,22,30,23],[30,24,30,25],[32,22,32,23],[32,24,32,25],[32,26,32,27],[32,28,32,29],[33,22,33,23],[33,24,33,25],[33,26,33,27],[33,28,33,29],[30,26,30,27],[30,28,30,29],[31,22,31,23],[31,24,31,25],[31,26,31,27],[31,28,31,29],[36,1,36,6],[38,5,38,6],[38,14,38,15],[38,22,38,23],[34,22,34,23],[34,24,34,25],[34,26,34,27],[34,28,34,29],[35,22,35,25],[35,26,35,29],[144,0,144,16],[144,17,144,30],[145,18,145,30],[146,17,149,20],[146,21,149,30],[160,6,160,29],[103,17,103,19],[113,15,113,29],[143,0,143,30],[176,13,176,14],[176,22,176,23],[180,13,180,14],[182,13,182,14],[184,13,184,14],[188,13,188,14],[162,6,162,29],[164,6,164,29],[166,6,166,29],[168,6,168,29],[170,6,170,29],[174,13,174,14],[174,22,174,23],[204,12,204,13],[204,14,204,15],[204,16,204,17],[204,18,204,19],[204,20,204,21],[204,22,204,29],[190,13,190,14],[192,13,192,14],[200,10,200,29],[203,12,203,13],[203,14,203,15],[203,16,203,17],[203,18,203,19],[203,20,203,21],[203,22,203,29],[206,12,206,13],[206,14,206,15],[206,16,206,17],[206,18,206,19],[206,20,206,21],[206,22,206,29],[205,12,205,13],[205,14,205,15],[205,16,205,17],[205,18,205,19],[205,20,205,21],[205,22,205,29],[216,5,216,6],[216,16,216,17],[216,27,216,28],[221,5,221,6],[221,16,221,17],[221,27,221,28],[214,5,214,6],[214,16,214,17],[214,27,214,28],[215,5,215,6],[215,16,215,17],[215,27,215,28],[228,5,228,6],[228,16,228,17],[228,27,228,28],[229,5,229,6],[229,16,229,17],[229,27,229,28],[222,5,222,6],[222,16,222,17],[222,27,222,28],[223,5,223,6],[223,16,223,17],[223,27,223,28],[234,2,234,12],[234,13,234,14],[234,17,234,27],[234,28,234,29],[235,2,235,12],[235,13,235,14],[235,17,235,27],[235,28,235,29],[230,5,230,6],[230,16,230,17],[230,27,230,28],[233,2,233,12],[233,17,233,27],[233,28,233,29],[238,2,238,12],[238,13,238,14],[238,17,238,27],[238,28,238,29],[239,2,239,12],[239,13,239,14],[239,17,239,27],[239,28,239,29],[236,2,236,12],[236,13,236,14],[236,17,236,27],[236,28,236,29],[237,2,237,12],[237,13,237,14],[237,17,237,27],[237,28,237,29],[242,2,242,12],[242,13,242,14],[242,17,242,27],[242,28,242,29],[243,2,243,12],[243,13,243,14],[243,17,243,27],[243,28,243,29],[240,2,240,12],[240,13,240,14],[240,17,240,27],[240,28,240,29],[241,2,241,12],[241,13,241,14],[241,17,241,27],[241,28,241,29],[250,1,250,5],[250,6,250,9],[250,10,250,13],[250,14,250,17],[251,1,251,5],[251,6,251,9],[251,10,251,13],[251,14,251,17],[247,1,248,5],[247,6,247,17],[248,6,248,9],[248,10,248,13],[248,14,248,17],[249,1,249,5],[249,6,249,9],[249,10,249,13],[249,14,249,17],[257,16,257,29],[258,16,258,29],[259,16,259,29],[260,16,260,29],[266,2,266,29],[269,2,269,29],[252,1,252,5],[252,6,252,9],[252,10,252,13],[252,14,252,17],[253,4,253,5],[253,6,253,9],[253,10,253,13],[253,14,253,17]]}
[]
[]
[]
[]
["FICHA DE EVALUACIÓN DE SIMULACROS POR LLUVIAS, INUDACIONES, DESLIZAMIENTOS"]
[]
["I. DATOS GENERALES"]
[]
[null,"N° I.E.:",null,null,null,null,null,null,null,null,null,null,"Fecha Aplicación:",null,null,null,null,null,null,null,null,null,null,"Simulacro N°:"]
[]
[null,"Nombre I.E.:"]
[]
[null,"Director(a):"]
[]
[null,"Dirección I.E.:",null,null,null,null,null,null,null,null,null,null,null,null,null,null,null,"Distrito:"]
[]
[null,"D.R.E.:",null,null,null,null,null,null,null,null,null,null,null,null,null,null,null,"U.G.E.L.:"]
[]
[null,"Código Local:",null,null,null,null,null,null,null,null,null,null,null,null,null,null,null,"Código Modular:"]
[]
[null,"Gestión:",null,null,null,null,null,null,null,null,null,null,null,null,null,null,null,"Turno:"]
[]
[null,"Teléfono I.E.:",null,null,null,null,null,null,null,null,null,null,null,null,null,null,null,"Celular Director(a):"]
[]
[null,"Área:",null,null,null,null,null,null,null,null,null,null,null,null,null,null,null,"Correo electrónico:",null,null,1]
[]
[null,"Coordinador CGR:"]
[]
[null,"Modalidad (nivel/ciclo) y Estudiantes - Docentes (cantidad)"]
[null,"MODALIDAD",null,null,null,null,null,null,null,null,null,null,null,null,null,null,null,null,null,null,null,null,"N° Estudiantes",null,null,null,"N° Docentes"]
[null,null,null,null,null,null,null,null,null,null,null,null,null,null,null,null,null,null,null,null,null,null,"H",null,"M",null,"H",null,"M"]
[]
[]
[]
[null,null,null,null,null,null,null,null,null,null,null,null,null,null,null,null,null,null,null,null,null,"Subtotales",{"$f":"SUM(W32:X34)","v":0},null,{"$f":"SUM(Y32:Z34)","v":0},null,{"$f":"SUM(AA32:AB34)","v":0},null,{"$f":"SUM(AC32:AD34)","v":0}]
[null,null,null,null,null,null,null,null,null,null,null,null,null,null,null,null,null,null,null,null,null,"TOTAL",{"$f":"SUM(W35)+Y35","v":0},null,null,null,{"$f":"SUM(AA35)+AC35","v":0}]
[null,"Ambientes en uso:",null,null,null,null,null,"(indique la cantidad)"]
[null,null,null,null,null,null,"}"]
[null,null,null,null,"Aulas de clase",null,null,null,null,null,null,null,null,"Administrativos",null,null,null,null,null,null,null,"Otros"]
[]
[]
["II. ANTES DEL SIMULACRO",null,null,null,null,null,null,null,null,null,null,null,null,null,null,null,null,null,null,null,null,null,null,null,null,null,null,"Subtotal Parcial",null,{"$f":"SUM(AD46,AD48,AD50,AD52,AD54,AD56,AD58,AD60,AD62,AD73,AD75,AD77)","v":0}]
[]
["ASPECTOS FISICOS (organización, funcionamiento y equipos de emergencia)",null,null,null,null,null,null,null,null,null,null,null,null,null,null,null,null,null,null,null,null,null,null,null,null,null,null,null,null,"Puntos"]
[]
[null,"2.1 Constitución y funcionamiento de la Comisión de Gestión del Riesgo."]
[]
[null,"2.2 Plan de Gestión del Riesgo y de contingencia"]
[]
[null,"2.3 Inspección técnica del local."]
[]
[null,"2.4 Implementación del Centro de Operaciones de Emergencia "]
[]
[null,"2.5 Colocación de señales en las zonas de seguridad y las rutas de evacuación"]
[]
[null,"2.6 Implementación del botiquin de primeros auxilios, camillas, otros."]
[]
[null,"2.7 Implementación de extintores en cada área y/o recipientes de arena fina."]
[]
[null,"2.8 Implementación de herramientas: barreta, hacha, pala, pico, etc."]
[]
[null,"2.9 Arreglo de canaletas para el drenaje del agua de lluvia"]
[]
[null,"2.10 Limpieza de techo para el flujo del agua en caso de lluvias"]
[]
[null,"2.11 Implementación de saco terrero para evitar el filtrado de agua a la institución educativa"]
[]
[null,"2.12 Organización de las Brigadas frente al fenómeno de \"El Niño\""]
[]
[]
["ASPECTOS PEDAGÓGICOS",null,null,null,null,null,null,null,null,null,null,null,null,null,null,null,null,null,null,null,null,null,null,null,null,null,null,null,null,"Puntos"]
[]
[null,"2.13 Capacitación a docentes, personal administrativo y de servicio."]
[]
[null,"2.14 Elabora materiales y recursos educativos para el desarrollo del simulacro."]
[]
[null,"2.15 Realiza el simulacro en el marco de sesiones de aprendizaje y/o unidades didacticas."]
[]
[]
["III. DURANTE EL SIMULACRO",null,null,null,null,null,null,null,null,null,null,null,null,null,null,null,null,null,null,null,null,null,null,null,null,null,null,"Subtotal Parcial",null,{"$f":"SUM(AD84,AD86,AD88,AD90,AD94,AD96,AD98,AD100,AD104,AD106)","v":0}]
[]
["PARTICIPACIÓN DEL PERSONAL",null,null,null,null,null,null,null,null,null,null,null,null,null,null,null,null,null,null,null,null,null,null,null,null,null,null,null,null,"Puntos"]
[]
[null,"3.1 Personal docente. …………………………………………………………………………………………………………………………"]
[]
[null,"3.2 Personal administrativo. …………………………………………………………………………………………………………….."]
[]
[null,"3.3 Estudiantes. …………………………………………………………………………………………………………………………………."]
[]
[null,"3.4 Personal de servicio y visitantes. ……………………………………………………………………………………………….."]
[]
["DESPLAZAMIENTO DEL PERSONAL",null,null,null,null,null,null,null,null,null,null,null,null,null,null,null,null,null,null,null,null,null,null,null,null,null,null,null,null,"Puntos"]
[]
[null,"3.5 Personal docente. ……………………………………………………………………………………………………………………….."]
[]
[null,"3.6 Personal administrativo. …………………………………………………………………………………………………………….."]
[]
[null,"3.7 Estudiantes. …………………………………………………………………………………………………………………………………"]
[]
[null,"3.8 Personal de servicio y visitantes. ………………………………………………………………………………………………."]
[]
["OTROS",null,null,null,null,null,null,null,null,null,null,null,null,null,null,null,null,null,null,null,null,null,null,null,null,null,null,null,null,"Puntos"]
[]
[null,"3.9 Tiempo de duración de la evacuación. "]
[]
[null,"3.10 Funcionamiento del sistema de alarma:"]
[]
[null,"3.11 La evacuación de la institución educativa es al: "]
[]
[null,"3.12 La evacuación la realiza de manera:"]
[]
[null,"3.13 Si la evacuación es EXTERNA, ¿tiene ruta de evacuación?"]
[]
[null,"3.14 Si la evacuación es externa indicar el lugar:"]
[]
[]
["IV. DESPUES DEL SIMULACRO",null,null,null,null,null,null,null,null,null,null,null,null,null,null,null,null,null,null,null,null,null,null,null,null,null,null,"Subtotal Parcial",null,{"$f":"SUM(AD121,AD125,AD127,AD131,AD133,AD135,AD141)","v":0}]
[]
["COMISION DE GESTIÓN DEL RIESGO",null,null,null,null,null,null,null,null,null,null,null,null,null,null,null,null,null,null,null,null,null,null,null,null,null,null,null,null,"Puntos"]
[]
[null,"4.1 Participación de los integrantes de la Comisión de Gestión del Riesgo."]
[]
["COORDINADOR DEL SIMULACRO",null,null,null,null,null,null,null,null,null,null,null,null,null,null,null,null,null,null,null,null,null,null,null,null,null,null,null,null,"Puntos"]
[]
[null,"4.2 Asumió su función de lider en la conducción del evento."]
[]
[null,"4.3 Impartió instrucciones claras, concretas al personal y brigadistas."]
[]
["PARTICIPACIÓN DE BRIGADAS",null,null,null,null,null,null,null,null,null,null,null,null,null,null,null,null,null,null,null,null,null,null,null,null,null,null,null,null,"Puntos"]
[]
[null,"4.4 Brigada de señalización de evacuación y evaluación"]
[]
[null,"4.5 Brigada de docentes en intervención inicial de búsqueda y salvamento"]
[]
[null,"4.6 Brigada de primeros auxilios"]
[]
[null,"4.7 Brigada de protección y entrega de niños"]
[]
[null,"4.8 Brigada contra incendios"]
[]
[null,"4.9 Brigada de seguridad frente a riesgo social"]
[]
[]
["EVALUACIÓN FINAL"]
["PUNTOS OBTENIDOS:",null,null,null,null,null,null,null,null,null,null,null,null,null,null,null,null,{"$f":"SUM(AD117,AD80,AD42)","v":0}]
["NIVEL DE LOGRO",null,null,null,null,null,null,null,null,null,null,null,null,null,null,null,null,null,"LOGRO ALCANZADO (MAX 116)"]
["EN INICIO",null,null,null,null,null,null,"(01 - 40%)",null,null,null,null,null,null,null,null,null,{"$f":"(R145/100)*100","v":0},null,null,null,{"$f":"IF(AND(R147>=0,R147<41),\"EN INICIO\",(IF(AND(R147>=41,R147<71),\"EN PROCESO\",(IF(AND(R147>=71,R147<91),\"LOGRO PREVISTO\",\"LOGRO DESTACADO\")))))","v":"EN INICIO"}]
["EN PROCESO",null,null,null,null,null,null,"(41 - 70%)"]
["LOGRO PREVISTO",null,null,null,null,null,null,"(71 - 90%)"]
["LOGRO DESTACADO",null,null,null,null,null,null,"(91 - 100%)"]
[]
["V. PREPARACION ANTE EL FENÓMENO DE \"EL NIÑO\""]
[]
["ESPACIOS ALTERNOS PARA LA CONTINUIDAD DEL APRENDIZAJE"]
[]
[null,null,null,null,null,null,null,null,null,null,"Espacio alterno definido:"]
[]
[null,null,null,null,null,null,null,null,null,null,"Espacio alterno ubicado en la misma IE:"]
[]
[null,"Espacios Comunitarios (dirección):"]
[]
[]
[]
[]
[]
[]
[]
[]
[]
[]
[]
[]
[null,"N° de ambientes disponibles:"]
[]
[null,null,null,null,null,null,null,null,null,null,null,null,"Aulas de clase:",null,null,null,null,null,null,null,null,"Otros:"]
[]
[null,null,null,null,null,null,null,null,null,null,null,null,"Administrativos:",null,null,null,null,null,null,null,null,"Area de uso al aire libre:"]
[]
[null,"Los espacios alternos cuenta con (marcar con un aspa \"X\"):"]
[]
[null,null,null,null,null,null,null,null,null,null,null,null,"Agua:"]
[]
[null,null,null,null,null,null,null,null,null,null,null,null,"Desagüe:"]
[]
[null,null,null,null,null,null,null,null,null,null,null,null,"Acceso seguro:"]
[]
[null,"Para su eventual uso, cuenta con (marcar con un aspa \"X\"):"]
[]
[null,null,null,null,null,null,null,null,null,null,null,null,"Convenio:"]
[]
[null,null,null,null,null,null,null,null,null,null,null,null,"Acta:"]
[]
[null,null,null,null,null,null,null,null,null,null,null,null,"Contrato:"]
[]
["RESGUARDO DE MATERIAL EDUCATIVO, EQUIPOS Y MOBILIARIO"]
[]
[null,"Los materiales se resguardan en:"]
[]
[null,null,null,null,null,null,null,null,null,"La propia institución educativa:"]
[]
[null,null,null,null,null,null,null,null,null,"En otro lugar. ¿Dónde?:"]
[]
[null,"Como ha previsto resguardar los materiales, equipos y mobiliario (marcar con un aspa \"X\"):"]
[null,"Descripción",null,null,null,null,null,null,null,null,null,null,"Altillo",null,"Bolsas selladas",null,"Cajas",null,"Piso superior",null,"Otros",null,"Ubicación del material\n(solo si marca \"Otros\" especifique)"]
[null,"Material educativo (libros, cuadernos, útiles,etc)"]
[null,"Equipos (informáticos, laboratorio, etc.)"]
[null,"Mobiliario (carpetas, mesas, sillas,etc.)"]
[]
[]
["VII. REPORTE DE DAÑOS"]
[]
["A LA VIDA Y SALUD - ESTUDIANTES"]
[]
[null,"FALLECIDOS",null,null,null,null,null,null,null,null,null,null,"HERIDOS",null,null,null,null,null,null,null,null,null,null,"DESAPARECIDOS"]
[null,null,null,null,"Hombres:",null,null,null,null,null,null,null,null,null,null,"Hombres:",null,null,null,null,null,null,null,null,null,null,"Hombres:"]
[null,null,null,null,"Mujeres:",null,null,null,null,null,null,null,null,null,null,"Mujeres:",null,null,null,null,null,null,null,null,null,null,"Mujeres:"]
[null,null,null,null,"Total:",null,null,null,null,null,null,null,null,null,null,"Total:",null,null,null,null,null,null,null,null,null,null,"Total:"]
[]
["A LA VIDA Y SALUD - DOCENTES"]
[]
[null,"FALLECIDOS",null,null,null,null,null,null,null,null,null,null,"HERIDOS",null,null,null,null,null,null,null,null,null,null,"DESAPARECIDOS"]
[null,null,null,null,"Hombres:",null,null,null,null,null,null,null,null,null,null,"Hombres:",null,null,null,null,null,null,null,null,null,null,"Hombres:"]
[null,null,null,null,"Mujeres:",null,null,null,null,null,null,null,null,null,null,"Mujeres:",null,null,null,null,null,null,null,null,null,null,"Mujeres:"]
[null,null,null,null,"Total:",null,null,null,null,null,null,null,null,null,null,"Total:",null,null,null,null,null,null,null,null,null,null,"Total:"]
[]
["A LA VIDA Y SALUD - ADMINISTRATIVOS"]
[]
[null,"FALLECIDOS",null,null,null,null,null,null,null,null,null,null,"HERIDOS",null,null,null,null,null,null,null,null,null,null,"DESAPARECIDOS"]
[null,null,null,null,"Hombres:",null,null,null,null,null,null,null,null,null,null,"Hombres:",null,null,null,null,null,null,null,null,null,null,"Hombres:"]
[null,null,null,null,"Mujeres:",null,null,null,null,null,null,null,null,null,null,"Mujeres:",null,null,null,null,null,null,null,null,null,null,"Mujeres:"]
[null,null,null,null,"Total:",null,null,null,null,null,null,null,null,null,null,"Total:",null,null,null,null,null,null,null,null,null,null,"Total:"]
[]
[null,"6.3 RELACIÓN DE ATENDIDOS"]
[null,"N°","FALLECIDOS",null,null,null,null,null,null,null,null,null,null,"EDAD",null,null,"N°","HERIDOS",null,null,null,null,null,null,null,null,null,null,"EDAD"]
[null,1,null,null,null,null,null,null,null,null,null,null,null,null,null,null,1]
[null,2,null,null,null,null,null,null,null,null,null,null,null,null,null,null,2]
[null,3,null,null,null,null,null,null,null,null,null,null,null,null,null,null,3]
[null,4,null,null,null,null,null,null,null,null,null,null,null,null,null,null,4]
[null,5,null,null,null,null,null,null,null,null,null,null,null,null,null,null,5]
[null,6,null,null,null,null,null,null,null,null,null,null,null,null,null,null,6]
[null,7,null,null,null,null,null,null,null,null,null,null,null,null,null,null,7]
[null,8,null,null,null,null,null,null,null,null,null,null,null,null,null,null,8]
[null,9,null,null,null,null,null,null,null,null,null,null,null,null,null,null,9]
[null,10,null,null,null,null,null,null,null,null,null,null,null,null,null,null,10]
[]
["A LA INFRAESTRUCTURA EDUCATIVA"]
[]
[null,"Tipo de ambiente",null,null,null,null,"CANTIDAD DE AMBIENTES"]
[null,null,null,null,null,null,"AFECTADA",null,null,null,"INHABILITADA",null,null,null,"COLAPSADA"]
[null,"Edificaciones:"]
[null,"Aulas:"]
[null,"Techos:"]
[null,"Servicios higiénicos:"]
[null,null,null,null,"Total"]
[]
[null,"Instituciones que Brindaron Ayuda (seleccionar)"]
[null,null,null,null,null,null,null,null,null,null,null,null,null,null,"Otros: (Precisar)"]
[]
[]
[]
[]
[]
[]
["VI. RECOMENDACIONES"]
[]
[null,"6.1 DEL COORDINADOR DE LA COMISIÓN DE GESTIÓN DEL RIESGO"]
[]
[]
[null,"6.2 DEL EVALUADOR / OBSERVADOR"]
[null,null," "]